Workbook

Sheet Read here First
J2: The sheet is password protected. But all the formulae are visible. It can be unlocked for a little fee by contacting the author at
J3: mailto1stopinvestment@gmail.com
J5: This is meant for personal use only. No part of this sheet can be used as part of another spreadsheet or online
J6: program without the explicit consent of the author, Jeysivaa.
B9: 1 | C9: Enter Stock data in the Spreadsheet
B10: 2 | C10: Enter Stock Name & Sector in the Spreadsheet
B11: 3 | C11: For the Current Market Price, Follow the Instruction in the Spreadsheet
E13: If you require any help , Send your Queries , any modification requirement , etc…

Sheet Stocks Data
C1: Stock Portfolio Tracker
C2: Created by Jeysivaa , Founder & CEO of 1stopinvestment.com
B3: DATE | C3: STOCK Name | D3: QTY | E3: Unit Price | F3: TOTAL
A4: =CONCATENATE(TEXT(B4,"mmmm"),"-",TEXT(B4,"yyyy")) -> May-2020 | B4: 2020-05-01 | C4: RELIANCE | D4: 5 | E4: 1450.00 | F4: =D4*E4 -> 7250.00
A5: =CONCATENATE(TEXT(B5,"mmmm"),"-",TEXT(B5,"yyyy")) -> May-2020 | B5: 2020-05-01 | C5: ICICIBANK | D5: 5 | E5: 340.00 | F5: =D5*E5 -> 1700.00
A6: May-2020 | B6: 2020-05-01 | C6: KOTAKNIFTY | D6: 10 | E6: 93.00 | F6: 930.00
A7: January-1900
A8: January-1900
A9: January-1900
A10: January-1900
A11: January-1900
A12: January-1900
A13: January-1900
A14: January-1900
A15: January-1900
A16: January-1900
A17: January-1900
A18: January-1900
A19: January-1900
A20: January-1900
A21: January-1900
A22: January-1900
A23: January-1900
A24: January-1900
A25: January-1900
A26: January-1900
A27: January-1900
A28: January-1900
A29: January-1900
A30: January-1900
A31: January-1900
A32: January-1900
A33: January-1900
A34: January-1900
A35: January-1900
A36: January-1900
A37: January-1900
A38: January-1900
A39: January-1900
A40: January-1900
A41: January-1900
A42: January-1900
A43: January-1900
A44: January-1900
A45: January-1900
A46: January-1900
A47: January-1900
A48: January-1900
A49: January-1900
A50: January-1900
A51: January-1900
A52: January-1900
A53: January-1900
A54: January-1900
A55: January-1900
A56: January-1900
A57: January-1900
A58: January-1900
A59: January-1900
A60: January-1900
A61: January-1900
A62: January-1900
A63: January-1900
A64: January-1900
A65: January-1900
A66: January-1900
A67: January-1900
A68: January-1900
A69: =CONCATENATE(TEXT(B69,"mmmm"),"-",TEXT(B69,"yyyy")) -> January-1900
A70: January-1900
A71: January-1900
A72: January-1900
A73: January-1900
A74: January-1900
A75: January-1900
A76: January-1900
A77: January-1900
A78: January-1900
A79: January-1900
A80: January-1900
A81: January-1900
A82: January-1900
A83: January-1900
A84: January-1900
A85: January-1900
A86: January-1900
A87: January-1900
A88: January-1900
A89: January-1900
A90: January-1900
A91: January-1900
A92: January-1900
A93: January-1900
A94: January-1900
A95: January-1900
A96: January-1900
A97: January-1900
A98: January-1900
A99: January-1900
A100: January-1900
A101: January-1900
A102: January-1900
A103: January-1900
A104: January-1900
A105: January-1900
A106: January-1900
A107: January-1900
A108: January-1900
A109: January-1900
A110: January-1900
A111: January-1900
A112: January-1900
A113: January-1900
A114: January-1900
A115: January-1900
A116: January-1900
A117: January-1900
A118: January-1900
A119: January-1900
A120: January-1900
A121: January-1900
A122: January-1900
A123: January-1900
A124: January-1900
A125: January-1900
A126: January-1900
A127: January-1900
A128: January-1900
A129: January-1900
A130: January-1900
A131: January-1900
A132: January-1900
A133: =CONCATENATE(TEXT(B133,"mmmm"),"-",TEXT(B133,"yyyy")) -> January-1900
A134: January-1900
A135: January-1900
A136: January-1900
A137: January-1900
A138: January-1900
A139: January-1900
A140: January-1900
A141: January-1900
A142: January-1900
A143: January-1900
A144: January-1900
A145: January-1900
A146: January-1900
A147: January-1900
A148: January-1900
A149: January-1900
A150: January-1900
A151: January-1900
A152: January-1900
A153: January-1900
A154: January-1900
A155: January-1900
A156: January-1900
A157: January-1900
A158: January-1900
A159: January-1900
A160: January-1900
A161: January-1900
A162: January-1900
A163: January-1900
A164: January-1900
A165: January-1900
A166: January-1900
A167: January-1900
A168: January-1900
A169: January-1900
A170: January-1900
A171: January-1900
A172: January-1900
A173: January-1900
A174: January-1900
A175: January-1900
A176: January-1900
A177: January-1900
A178: January-1900
A179: January-1900
A180: January-1900
A181: January-1900
A182: January-1900
A183: January-1900
A184: January-1900
A185: January-1900
A186: January-1900
A187: January-1900
A188: January-1900
A189: January-1900
A190: January-1900
A191: January-1900
A192: January-1900
A193: January-1900
A194: January-1900
A195: January-1900
A196: January-1900
A197: =CONCATENATE(TEXT(B197,"mmmm"),"-",TEXT(B197,"yyyy")) -> January-1900
A198: January-1900
A199: January-1900
A200: January-1900
... 381 more rows

Sheet Dashboard
B1: Stocks Portfolio Tracker | J1: Total Holding Investment: | M1: =SUM(F4:F25) -> ₹ 9,880
B2: Created by Jeysivaa , Founder & CEO of 1stopinvestment.com | J2: Total Profit / Loss: | M2: =SUM(H4:H25) -> -₹ 20
A3: SECTOR | B3: Stock Name | C3: Portfolio Allocation | D3: NO'S | E3: Avg Price | F3: TOTAL Holdings | G3: CMP | H3: PROFIT/LOSS
A4: ENERGY | B4: RELIANCE | C4: =F4/$M$1 -> 73.38% | D4: =SUMIF('Stocks Data'!$C$4:$C$1000,Dashboard!$B4,'Stocks Data'!$D$4:$D$1000) -> 5 | E4: =SUMIF('Stocks Data'!$C$4:$C$1000,Dashboard!$B4,'Stocks Data'!$E$4:$E$1000) -> 1450 | F4: =D4*E4 -> 7250 | G4: =IF(ISBLANK(B4),0,VLOOKUP(B4,BHAV,6,0)) -> 1459.4 | H4: =(G4-E4)*D4 -> 47
A5: Private BANK | B5: ICICIBANK | C5: =F5/$M$1 -> 17.21% | D5: =SUMIF('Stocks Data'!$C$4:$C$1000,Dashboard!$B5,'Stocks Data'!$D$4:$D$1000) -> 5 | E5: =SUMIF('Stocks Data'!$C$4:$C$1000,Dashboard!$B5,'Stocks Data'!$E$4:$E$1000) -> 340 | F5: =D5*E5 -> 1700 | G5: 322.7 | H5: =(G5-E5)*D5 -> -87
A6: ETF | B6: KOTAKNIFTY | C6: 9.41% | D6: =SUMIF('Stocks Data'!$C$4:$C$1000,Dashboard!$B6,'Stocks Data'!$D$4:$D$1000) -> 10 | E6: =SUMIF('Stocks Data'!$C$4:$C$1000,Dashboard!$B6,'Stocks Data'!$E$4:$E$1000) -> 93 | F6: 930 | G6: 94.96 | H6: 20
C7: 0.00% | D7: =SUMIF('Stocks Data'!$C$4:$C$1000,Dashboard!$B7,'Stocks Data'!$D$4:$D$1000) -> 0 | E7: =SUMIF('Stocks Data'!$C$4:$C$1000,Dashboard!$B7,'Stocks Data'!$E$4:$E$1000) -> 0 | F7: 0 | G7: 0 | H7: 0
C8: 0.00% | D8: =SUMIF('Stocks Data'!$C$4:$C$1000,Dashboard!$B8,'Stocks Data'!$D$4:$D$1000) -> 0 | E8: =SUMIF('Stocks Data'!$C$4:$C$1000,Dashboard!$B8,'Stocks Data'!$E$4:$E$1000) -> 0 | F8: 0 | G8: 0 | H8: 0
C9: 0.00% | D9: =SUMIF('Stocks Data'!$C$4:$C$1000,Dashboard!$B9,'Stocks Data'!$D$4:$D$1000) -> 0 | E9: =SUMIF('Stocks Data'!$C$4:$C$1000,Dashboard!$B9,'Stocks Data'!$E$4:$E$1000) -> 0 | F9: 0 | G9: 0 | H9: 0
C10: 0.00% | D10: =SUMIF('Stocks Data'!$C$4:$C$1000,Dashboard!$B10,'Stocks Data'!$D$4:$D$1000) -> 0 | E10: =SUMIF('Stocks Data'!$C$4:$C$1000,Dashboard!$B10,'Stocks Data'!$E$4:$E$1000) -> 0 | F10: 0 | G10: 0 | H10: 0
C11: 0.00% | D11: =SUMIF('Stocks Data'!$C$4:$C$1000,Dashboard!$B11,'Stocks Data'!$D$4:$D$1000) -> 0 | E11: =SUMIF('Stocks Data'!$C$4:$C$1000,Dashboard!$B11,'Stocks Data'!$E$4:$E$1000) -> 0 | F11: 0 | G11: 0 | H11: 0
C12: 0.00% | D12: =SUMIF('Stocks Data'!$C$4:$C$1000,Dashboard!$B12,'Stocks Data'!$D$4:$D$1000) -> 0 | E12: =SUMIF('Stocks Data'!$C$4:$C$1000,Dashboard!$B12,'Stocks Data'!$E$4:$E$1000) -> 0 | F12: 0 | G12: 0 | H12: 0
C13: 0.00% | D13: =SUMIF('Stocks Data'!$C$4:$C$1000,Dashboard!$B13,'Stocks Data'!$D$4:$D$1000) -> 0 | E13: =SUMIF('Stocks Data'!$C$4:$C$1000,Dashboard!$B13,'Stocks Data'!$E$4:$E$1000) -> 0 | F13: 0 | G13: 0 | H13: 0
C14: 0.00% | D14: =SUMIF('Stocks Data'!$C$4:$C$1000,Dashboard!$B14,'Stocks Data'!$D$4:$D$1000) -> 0 | E14: =SUMIF('Stocks Data'!$C$4:$C$1000,Dashboard!$B14,'Stocks Data'!$E$4:$E$1000) -> 0 | F14: 0 | G14: 0 | H14: 0
C15: 0.00% | D15: =SUMIF('Stocks Data'!$C$4:$C$1000,Dashboard!$B15,'Stocks Data'!$D$4:$D$1000) -> 0 | E15: =SUMIF('Stocks Data'!$C$4:$C$1000,Dashboard!$B15,'Stocks Data'!$E$4:$E$1000) -> 0 | F15: 0 | G15: 0 | H15: 0
C16: 0.00% | D16: =SUMIF('Stocks Data'!$C$4:$C$1000,Dashboard!$B16,'Stocks Data'!$D$4:$D$1000) -> 0 | E16: =SUMIF('Stocks Data'!$C$4:$C$1000,Dashboard!$B16,'Stocks Data'!$E$4:$E$1000) -> 0 | F16: =D16*E16 -> 0 | G16: 0 | H16: =(G16-E16)*D16 -> 0
C17: 0.00% | D17: =SUMIF('Stocks Data'!$C$4:$C$1000,Dashboard!$B17,'Stocks Data'!$D$4:$D$1000) -> 0 | E17: =SUMIF('Stocks Data'!$C$4:$C$1000,Dashboard!$B17,'Stocks Data'!$E$4:$E$1000) -> 0 | F17: 0 | G17: 0 | H17: 0
C18: 0.00% | D18: =SUMIF('Stocks Data'!$C$4:$C$1000,Dashboard!$B18,'Stocks Data'!$D$4:$D$1000) -> 0 | E18: =SUMIF('Stocks Data'!$C$4:$C$1000,Dashboard!$B18,'Stocks Data'!$E$4:$E$1000) -> 0 | F18: 0 | G18: 0 | H18: 0
C19: 0.00% | D19: =SUMIF('Stocks Data'!$C$4:$C$1000,Dashboard!$B19,'Stocks Data'!$D$4:$D$1000) -> 0 | E19: =SUMIF('Stocks Data'!$C$4:$C$1000,Dashboard!$B19,'Stocks Data'!$E$4:$E$1000) -> 0 | F19: 0 | G19: 0 | H19: 0
C20: 0.00% | D20: =SUMIF('Stocks Data'!$C$4:$C$1000,Dashboard!$B20,'Stocks Data'!$D$4:$D$1000) -> 0 | E20: =SUMIF('Stocks Data'!$C$4:$C$1000,Dashboard!$B20,'Stocks Data'!$E$4:$E$1000) -> 0 | F20: 0 | G20: 0 | H20: 0
C21: 0.00% | D21: =SUMIF('Stocks Data'!$C$4:$C$1000,Dashboard!$B21,'Stocks Data'!$D$4:$D$1000) -> 0 | E21: =SUMIF('Stocks Data'!$C$4:$C$1000,Dashboard!$B21,'Stocks Data'!$E$4:$E$1000) -> 0 | F21: 0 | G21: 0 | H21: 0
C22: 0.00% | D22: =SUMIF('Stocks Data'!$C$4:$C$1000,Dashboard!$B22,'Stocks Data'!$D$4:$D$1000) -> 0 | E22: =SUMIF('Stocks Data'!$C$4:$C$1000,Dashboard!$B22,'Stocks Data'!$E$4:$E$1000) -> 0 | F22: 0 | G22: 0 | H22: 0
C23: 0.00% | D23: =SUMIF('Stocks Data'!$C$4:$C$1000,Dashboard!$B23,'Stocks Data'!$D$4:$D$1000) -> 0 | E23: =SUMIF('Stocks Data'!$C$4:$C$1000,Dashboard!$B23,'Stocks Data'!$E$4:$E$1000) -> 0 | F23: 0 | G23: 0 | H23: 0
C24: 0.00% | D24: =SUMIF('Stocks Data'!$C$4:$C$1000,Dashboard!$B24,'Stocks Data'!$D$4:$D$1000) -> 0 | E24: =SUMIF('Stocks Data'!$C$4:$C$1000,Dashboard!$B24,'Stocks Data'!$E$4:$E$1000) -> 0 | F24: 0 | G24: 0 | H24: 0
C25: 0.00% | D25: =SUMIF('Stocks Data'!$C$4:$C$1000,Dashboard!$B25,'Stocks Data'!$D$4:$D$1000) -> 0 | E25: =SUMIF('Stocks Data'!$C$4:$C$1000,Dashboard!$B25,'Stocks Data'!$E$4:$E$1000) -> 0 | F25: 0 | G25: 0 | H25: 0

Sheet NSE - BHAVCOPY
A1: SYMBOL | B1: SERIES | C1: OPEN | D1: HIGH | E1: LOW | F1: CLOSE | G1: LAST | H1: PREVCLOSE | I1: TOTTRDQTY | J1: TOTTRDVAL | K1: TIMESTAMP | L1: TOTALTRADES | M1: ISIN | O1: ClickHere-> | P1: https://www1.nseindia.com/products/content/equities/equities/archieve_eq.htm
A2: 20MICRONS | B2: EQ | C2: 26 | D2: 26.5 | E2: 25.75 | F2: 26.1 | G2: 26.2 | H2: 25.8 | I2: 25232 | J2: 657110.05 | K2: 2020-05-15 | L2: 369 | M2: INE144J01027
A3: 21STCENMGM | B3: EQ | C3: 10.05 | D3: 10.45 | E3: 10.05 | F3: 10.45 | G3: 10.45 | H3: 10.25 | I3: 1488 | J3: 15031.6 | K3: 2020-05-15 | L3: 18 | M3: INE253B01015
A4: 3IINFOTECH | B4: EQ | C4: 1.65 | D4: 1.65 | E4: 1.65 | F4: 1.65 | G4: 1.65 | H4: 1.6 | I4: 664586 | J4: 1096566.9 | K4: 2020-05-15 | L4: 228 | M4: INE748C01020
A5: 3MINDIA | B5: EQ | C5: 17800 | D5: 17979.95 | E5: 17520 | F5: 17675.5 | G5: 17600 | H5: 17735.85 | I5: 1750 | J5: 31088441.1 | K5: 2020-05-15 | L5: 1019 | M5: INE470A01017
A6: 3PLAND | B6: EQ | C6: 5.15 | D6: 5.15 | E6: 5.15 | F6: 5.15 | G6: 5.15 | H6: 5.15 | I6: 410 | J6: 2111.5 | K6: 2020-05-15 | L6: 5 | M6: INE105C01023
A7: 509GS2022 | B7: GS | C7: 95.04 | D7: 95.04 | E7: 95.04 | F7: 95.04 | G7: 95.04 | H7: 95.04 | I7: 1 | J7: 95.04 | K7: 2020-05-15 | L7: 1 | M7: IN0020200021
A8: 5PAISA | B8: EQ | C8: 150.5 | D8: 154.95 | E8: 149.2 | F8: 152.4 | G8: 153 | H8: 150.95 | I8: 11783 | J8: 1786873.9 | K8: 2020-05-15 | L8: 222 | M8: INE618L01018
A9: 617GS2021 | B9: GS | C9: 99.01 | D9: 99.01 | E9: 99.01 | F9: 99.01 | G9: 99.01 | H9: 101 | I9: 10 | J9: 990.1 | K9: 2020-05-15 | L9: 1 | M9: IN0020190099
A10: 63MOONS | B10: BE | C10: 54.7 | D10: 55.05 | E10: 53.05 | F10: 54.05 | G10: 54 | H10: 55.05 | I10: 16173 | J10: 870379.3 | K10: 2020-05-15 | L10: 1161 | M10: INE111B01023
A11: 645GS2029 | B11: GS | C11: 102 | D11: 102 | E11: 102 | F11: 102 | G11: 102 | H11: 103 | I11: 1 | J11: 102 | K11: 2020-05-15 | L11: 1 | M11: IN0020190362
A12: 719GS2060 | B12: GS | C12: 106.55 | D12: 106.6 | E12: 106.55 | F12: 106.55 | G12: 106.6 | H12: 105.7 | I12: 2455 | J12: 261580.5 | K12: 2020-05-15 | L12: 9 | M12: IN0020200039
A13: 759GS2026 | B13: GS | C13: 109 | D13: 109 | E13: 109 | F13: 109 | G13: 109 | H13: 108 | I13: 10 | J13: 1090 | K13: 2020-05-15 | L13: 2 | M13: IN0020150093
A14: 762GS2039 | B14: GS | C14: 110 | D14: 115 | E14: 110 | F14: 115 | G14: 115 | H14: 115.5 | I14: 2516 | J14: 279390 | K14: 2020-05-15 | L14: 6 | M14: IN0020190024
A15: 795GS2032 | B15: GS | C15: 109 | D15: 112 | E15: 109 | F15: 112 | G15: 112 | H15: 111.3 | I15: 201 | J15: 21912 | K15: 2020-05-15 | L15: 2 | M15: IN0020020106
A16: A2ZINFRA | B16: EQ | C16: 3.9 | D16: 3.9 | E16: 3.7 | F16: 3.8 | G16: 3.85 | H16: 3.85 | I16: 286028 | J16: 1069901.05 | K16: 2020-05-15 | L16: 271 | M16: INE619I01012
A17: AARTIDRUGS | B17: EQ | C17: 857 | D17: 874.9 | E17: 823 | F17: 863.35 | G17: 853 | H17: 835.55 | I17: 968973 | J17: 832498012.5 | K17: 2020-05-15 | L17: 39456 | M17: INE767A01016
A18: AARTIIND | B18: EQ | C18: 1026.9 | D18: 1046.25 | E18: 1020 | F18: 1026.05 | G18: 1026.15 | H18: 1021.55 | I18: 271922 | J18: 280720919.1 | K18: 2020-05-15 | L18: 16822 | M18: INE769A01020
A19: AARVEEDEN | B19: EQ | C19: 8.85 | D19: 9 | E19: 8.65 | F19: 8.95 | G19: 8.65 | H19: 8.85 | I19: 5537 | J19: 49064.8 | K19: 2020-05-15 | L19: 36 | M19: INE273D01019
A20: AARVI | B20: SM | C20: 21.4 | D20: 21.4 | E20: 21.4 | F20: 21.4 | G20: 21.4 | H20: 22.5 | I20: 4000 | J20: 85600 | K20: 2020-05-15 | L20: 2 | M20: INE754X01016
A21: AAVAS | B21: EQ | C21: 987 | D21: 1011.2 | E21: 962.05 | F21: 982.5 | G21: 970 | H21: 970.05 | I21: 116555 | J21: 114986163 | K21: 2020-05-15 | L21: 5884 | M21: INE216P01012
A22: ABAN | B22: BE | C22: 18.9 | D22: 19.3 | E22: 18.15 | F22: 18.75 | G22: 18.95 | H22: 18.9 | I22: 18664 | J22: 348306.45 | K22: 2020-05-15 | L22: 197 | M22: INE421A01028
A23: ABB | B23: EQ | C23: 840 | D23: 846 | E23: 821 | F23: 822.7 | G23: 823 | H23: 836.1 | I23: 62463 | J23: 51904984.35 | K23: 2020-05-15 | L23: 4015 | M23: INE117A01022
A24: ABBOTINDIA | B24: EQ | C24: 17847 | D24: 17847 | E24: 17470.2 | F24: 17619.55 | G24: 17545 | H24: 17907.05 | I24: 14274 | J24: 251276416.8 | K24: 2020-05-15 | L24: 6190 | M24: INE358A01014
A25: ABCAPITAL | B25: EQ | C25: 45 | D25: 45 | E25: 43.5 | F25: 44.25 | G25: 44.3 | H25: 44.6 | I25: 992909 | J25: 43661878.45 | K25: 2020-05-15 | L25: 4720 | M25: INE674K01013
A26: ABFRL | B26: EQ | C26: 104.9 | D26: 106.4 | E26: 101.6 | F26: 104.1 | G26: 104.2 | H26: 102.95 | I26: 1427120 | J26: 149062161.2 | K26: 2020-05-15 | L26: 19894 | M26: INE647O01011
A27: ABMINTLTD | B27: BE | C27: 13 | D27: 13 | E27: 13 | F27: 13 | G27: 13 | H27: 13 | I27: 10 | J27: 130 | K27: 2020-05-15 | L27: 1 | M27: INE251C01017
A28: ABSLBANETF | B28: EQ | C28: 182 | D28: 189.28 | E28: 180 | F28: 182.54 | G28: 181 | H28: 180.31 | I28: 632 | J28: 114902.46 | K28: 2020-05-15 | L28: 67 | M28: INF209KB1O58
A29: ABSLNN50ET | B29: EQ | C29: 232.2 | D29: 252.95 | E29: 225.05 | F29: 240 | G29: 240 | H29: 241.83 | I29: 77 | J29: 18509.02 | K29: 2020-05-15 | L29: 29 | M29: INF209KB1B87
A30: ABSLRIF6RG | B30: MF | C30: 5.3 | D30: 5.41 | E30: 5.3 | F30: 5.4 | G30: 5.4 | H30: 5.3 | I30: 14000 | J30: 75368 | K30: 2020-05-15 | L30: 3 | M30: INF209KB1LL4
A31: ACC | B31: EQ | C31: 1200 | D31: 1205 | E31: 1173 | F31: 1194.2 | G31: 1192.8 | H31: 1189 | I31: 1268081 | J31: 1507573546 | K31: 2020-05-15 | L31: 43866 | M31: INE012A01025
A32: ACCELYA | B32: EQ | C32: 905 | D32: 922 | E32: 902.1 | F32: 909.7 | G32: 904 | H32: 904.1 | I32: 14815 | J32: 13486780.65 | K32: 2020-05-15 | L32: 983 | M32: INE793A01012
A33: ACCURACY | B33: SM | C33: 17.25 | D33: 17.25 | E33: 17.25 | F33: 17.25 | G33: 17.25 | H33: 17.2 | I33: 76800 | J33: 1324800 | K33: 2020-05-15 | L33: 7 | M33: INE648Z01015
A34: ACE | B34: EQ | C34: 44.35 | D34: 44.7 | E34: 43.7 | F34: 44 | G34: 44.2 | H34: 43.7 | I34: 138622 | J34: 6116455.6 | K34: 2020-05-15 | L34: 1076 | M34: INE731H01025
A35: ADANIENT | B35: EQ | C35: 141.4 | D35: 143.7 | E35: 140 | F35: 141.05 | G35: 141.05 | H35: 140.9 | I35: 2145698 | J35: 304456147.9 | K35: 2020-05-15 | L35: 16299 | M35: INE423A01024
A36: ADANIGAS | B36: EQ | C36: 108 | D36: 109.8 | E36: 106.5 | F36: 107.45 | G36: 106.8 | H36: 106.35 | I36: 1697595 | J36: 183880948.9 | K36: 2020-05-15 | L36: 13337 | M36: INE399L01023
A37: ADANIGREEN | B37: EQ | C37: 228.6 | D37: 231.5 | E37: 225.7 | F37: 230.25 | G37: 230 | H37: 228.55 | I37: 325461 | J37: 74275339.25 | K37: 2020-05-15 | L37: 5274 | M37: INE364U01010
A38: ADANIPORTS | B38: EQ | C38: 309 | D38: 312 | E38: 305.35 | F38: 309.25 | G38: 309 | H38: 308.4 | I38: 3712050 | J38: 1145639791 | K38: 2020-05-15 | L38: 39563 | M38: INE742F01042
A39: ADANIPOWER | B39: EQ | C39: 33.3 | D39: 33.35 | E39: 32.1 | F39: 32.35 | G39: 32.3 | H39: 33.05 | I39: 9887393 | J39: 322003617.8 | K39: 2020-05-15 | L39: 19576 | M39: INE814H01011
A40: ADANITRANS | B40: EQ | C40: 195 | D40: 196.05 | E40: 191 | F40: 195.1 | G40: 195 | H40: 197.1 | I40: 125023 | J40: 24265657.65 | K40: 2020-05-15 | L40: 5150 | M40: INE931S01010
A41: ADFFOODS | B41: EQ | C41: 229.9 | D41: 237.9 | E41: 220 | F41: 237.35 | G41: 237.65 | H41: 226.6 | I41: 171121 | J41: 39811070.55 | K41: 2020-05-15 | L41: 5382 | M41: INE982B01019
A42: ADHUNIKIND | B42: EQ | C42: 16.85 | D42: 18.55 | E42: 16.85 | F42: 18.55 | G42: 18.55 | H42: 17.7 | I42: 20124 | J42: 369924.35 | K42: 2020-05-15 | L42: 135 | M42: INE452L01012
A43: ADORWELD | B43: EQ | C43: 236.8 | D43: 242.45 | E43: 232.85 | F43: 233.45 | G43: 233 | H43: 239.35 | I43: 11087 | J43: 2596420.35 | K43: 2020-05-15 | L43: 382 | M43: INE045A01017
A44: ADROITINFO | B44: BE | C44: 6.15 | D44: 6.25 | E44: 5.85 | F44: 6.2 | G44: 6.2 | H44: 6.1 | I44: 10806 | J44: 66895.6 | K44: 2020-05-15 | L44: 133 | M44: INE737B01033
A45: ADSL | B45: EQ | C45: 13.8 | D45: 13.8 | E45: 12.25 | F45: 13.4 | G45: 13.25 | H45: 13.15 | I45: 16441 | J45: 216847.5 | K45: 2020-05-15 | L45: 144 | M45: INE102I01027
A46: ADVANIHOTR | B46: EQ | C46: 39.1 | D46: 39.1 | E46: 37.55 | F46: 38 | G46: 38 | H46: 38.55 | I46: 12891 | J46: 490869.65 | K46: 2020-05-15 | L46: 100 | M46: INE199C01026
A47: ADVENZYMES | B47: EQ | C47: 150.5 | D47: 166 | E47: 148 | F47: 156.75 | G47: 158 | H47: 152.3 | I47: 930074 | J47: 148276147.9 | K47: 2020-05-15 | L47: 13744 | M47: INE837H01020
A48: AEGISCHEM | B48: EQ | C48: 173.4 | D48: 175 | E48: 170.15 | F48: 172.7 | G48: 172.5 | H48: 171.6 | I48: 85640 | J48: 14834401.2 | K48: 2020-05-15 | L48: 4231 | M48: INE208C01025
A49: AFFLE | B49: BE | C49: 1342 | D49: 1345 | E49: 1305 | F49: 1318.6 | G49: 1328 | H49: 1329.7 | I49: 8134 | J49: 10720127.95 | K49: 2020-05-15 | L49: 1212 | M49: INE00WC01019
A50: AGARIND | B50: EQ | C50: 60.55 | D50: 60.85 | E50: 57 | F50: 58.35 | G50: 57.55 | H50: 59.7 | I50: 5753 | J50: 337385.2 | K50: 2020-05-15 | L50: 197 | M50: INE204E01012
A51: AGCNET | B51: BE | C51: 245 | D51: 249 | E51: 245 | F51: 249 | G51: 249 | H51: 249.55 | I51: 293 | J51: 72041 | K51: 2020-05-15 | L51: 10 | M51: INE676A01019
A52: AGRITECH | B52: BE | C52: 34 | D52: 34 | E52: 31.75 | F52: 32.5 | G52: 31.8 | H52: 33.4 | I52: 4179 | J52: 135867 | K52: 2020-05-15 | L52: 70 | M52: INE449G01018
A53: AGROPHOS | B53: EQ | C53: 9.65 | D53: 9.65 | E53: 9.65 | F53: 9.65 | G53: 9.65 | H53: 10.15 | I53: 10494 | J53: 101267.1 | K53: 2020-05-15 | L53: 54 | M53: INE740V01019
A54: AHLEAST | B54: EQ | C54: 143.85 | D54: 143.9 | E54: 132 | F54: 141.25 | G54: 143.9 | H54: 134.9 | I54: 3328 | J54: 449055.4 | K54: 2020-05-15 | L54: 79 | M54: INE926K01017
A55: AHLUCONT | B55: EQ | C55: 176.15 | D55: 176.15 | E55: 173.45 | F55: 174.15 | G55: 173.5 | H55: 174.85 | I55: 894 | J55: 155770.65 | K55: 2020-05-15 | L55: 79 | M55: INE758C01029
A56: AHLWEST | B56: BE | C56: 239 | D56: 239 | E56: 239 | F56: 239 | G56: 239 | H56: 232 | I56: 6 | J56: 1434 | K56: 2020-05-15 | L56: 1 | M56: INE915K01010
A57: AIAENG | B57: EQ | C57: 1684.95 | D57: 1689.9 | E57: 1613 | F57: 1631.05 | G57: 1615 | H57: 1672.15 | I57: 118659 | J57: 194075472.7 | K57: 2020-05-15 | L57: 1488 | M57: INE212H01026
A58: AIONJSW | B58: BE | C58: 11 | D58: 11.45 | E58: 10.75 | F58: 11.45 | G58: 11.45 | H58: 11.25 | I58: 26312 | J58: 292296.35 | K58: 2020-05-15 | L58: 66 | M58: INE743C01021
A59: AIRAN | B59: EQ | C59: 9.35 | D59: 9.65 | E59: 9 | F59: 9.3 | G59: 9 | H59: 9.4 | I59: 48602 | J59: 457275.45 | K59: 2020-05-15 | L59: 148 | M59: INE645W01026
A60: AISL | B60: SM | C60: 18.7 | D60: 18.7 | E60: 18.7 | F60: 18.7 | G60: 18.7 | H60: 17.85 | I60: 2400 | J60: 44880 | K60: 2020-05-15 | L60: 2 | M60: INE635Y01015
A61: AJANTPHARM | B61: EQ | C61: 1500 | D61: 1580 | E61: 1475 | F61: 1497 | G61: 1489 | H61: 1494.45 | I61: 784850 | J61: 1210741582 | K61: 2020-05-15 | L61: 37799 | M61: INE031B01049
A62: AJMERA | B62: EQ | C62: 89 | D62: 89 | E62: 83.1 | F62: 84.35 | G62: 83.25 | H62: 86.2 | I62: 176960 | J62: 15267427.1 | K62: 2020-05-15 | L62: 3085 | M62: INE298G01027
A63: AJOONI | B63: SM | C63: 6.65 | D63: 6.65 | E63: 6.65 | F63: 6.65 | G63: 6.65 | H63: 7 | I63: 4000 | J63: 26600 | K63: 2020-05-15 | L63: 1 | M63: INE820Y01013
A64: AKASH | B64: BE | C64: 81 | D64: 81 | E64: 81 | F64: 81 | G64: 81 | H64: 80.9 | I64: 100 | J64: 8100 | K64: 2020-05-15 | L64: 1 | M64: INE737W01013
A65: AKSHARCHEM | B65: EQ | C65: 219.95 | D65: 224 | E65: 202 | F65: 203.45 | G65: 202.25 | H65: 217.8 | I65: 48584 | J65: 10124180.2 | K65: 2020-05-15 | L65: 2053 | M65: INE542B01011
A66: AKSHOPTFBR | B66: EQ | C66: 5 | D66: 5 | E66: 4.7 | F66: 4.75 | G66: 4.75 | H66: 4.9 | I66: 205067 | J66: 977497.35 | K66: 2020-05-15 | L66: 309 | M66: INE523B01011
A67: AKZOINDIA | B67: EQ | C67: 1875 | D67: 1900 | E67: 1827 | F67: 1855.45 | G67: 1840 | H67: 1864.7 | I67: 5437 | J67: 10178386.9 | K67: 2020-05-15 | L67: 1020 | M67: INE133A01011
A68: ALANKIT | B68: EQ | C68: 16.5 | D68: 16.5 | E68: 15.8 | F68: 15.9 | G68: 16 | H68: 16.4 | I68: 38477 | J68: 614649.25 | K68: 2020-05-15 | L68: 267 | M68: INE914E01040
A69: ALBERTDAVD | B69: EQ | C69: 505 | D69: 508 | E69: 479.8 | F69: 482.45 | G69: 480.15 | H69: 499.35 | I69: 52296 | J69: 25616340.55 | K69: 2020-05-15 | L69: 3067 | M69: INE155C01010
A70: ALCHEM | B70: BE | C70: 3.3 | D70: 3.3 | E70: 3.3 | F70: 3.3 | G70: 3.3 | H70: 3.15 | I70: 22905 | J70: 75586.5 | K70: 2020-05-15 | L70: 18 | M70: INE964B01033
A71: ALEMBICLTD | B71: EQ | C71: 49.85 | D71: 54.9 | E71: 49.55 | F71: 53.8 | G71: 53.95 | H71: 49.2 | I71: 2413843 | J71: 128909495.4 | K71: 2020-05-15 | L71: 13962 | M71: INE426A01027
A72: ALICON | B72: EQ | C72: 220 | D72: 222.1 | E72: 207.05 | F72: 215.4 | G72: 217.85 | H72: 224.75 | I72: 971 | J72: 210060.65 | K72: 2020-05-15 | L72: 73 | M72: INE062D01024
A73: ALKALI | B73: EQ | C73: 40 | D73: 41.25 | E73: 39.05 | F73: 40 | G73: 40 | H73: 40.5 | I73: 8685 | J73: 347825.2 | K73: 2020-05-15 | L73: 121 | M73: INE773I01017
A74: ALKEM | B74: EQ | C74: 2545 | D74: 2547.95 | E74: 2461.3 | F74: 2473.35 | G74: 2477 | H74: 2527.1 | I74: 78644 | J74: 195721339.3 | K74: 2020-05-15 | L74: 9789 | M74: INE540L01014
A75: ALKYLAMINE | B75: EQ | C75: 1710.1 | D75: 1807.5 | E75: 1691 | F75: 1763.05 | G75: 1769 | H75: 1706.65 | I75: 41807 | J75: 73487865.65 | K75: 2020-05-15 | L75: 5334 | M75: INE150B01021
A76: ALLCARGO | B76: EQ | C76: 70.35 | D76: 71 | E76: 67.7 | F76: 69.25 | G76: 69.25 | H76: 70.35 | I76: 38694 | J76: 2670541 | K76: 2020-05-15 | L76: 743 | M76: INE418H01029
A77: ALLSEC | B77: EQ | C77: 167 | D77: 170.35 | E77: 159.95 | F77: 166.9 | G77: 170.35 | H77: 162.3 | I77: 1776 | J77: 291974.7 | K77: 2020-05-15 | L77: 64 | M77: INE835G01018
A78: ALMONDZ | B78: EQ | C78: 11.2 | D78: 11.2 | E78: 11.2 | F78: 11.2 | G78: 11.2 | H78: 11.35 | I78: 42 | J78: 470.4 | K78: 2020-05-15 | L78: 4 | M78: INE326B01027
A79: ALOKINDS | B79: EQ | C79: 11.55 | D79: 11.55 | E79: 11.55 | F79: 11.55 | G79: 11.55 | H79: 11 | I79: 720156 | J79: 8317801.8 | K79: 2020-05-15 | L79: 625 | M79: INE270A01029
A80: ALPA | B80: EQ | C80: 18.25 | D80: 18.5 | E80: 18 | F80: 18.15 | G80: 18 | H80: 18.55 | I80: 15604 | J80: 282516.4 | K80: 2020-05-15 | L80: 131 | M80: INE385I01010
A81: ALPHAGEO | B81: EQ | C81: 155.05 | D81: 155.25 | E81: 151.2 | F81: 154 | G81: 152.8 | H81: 154.35 | I81: 7039 | J81: 1078647.1 | K81: 2020-05-15 | L81: 284 | M81: INE137C01018
A82: ALPSINDUS | B82: BE | C82: 0.8 | D82: 0.85 | E82: 0.8 | F82: 0.85 | G82: 0.85 | H82: 0.8 | I82: 22309 | J82: 18739.6 | K82: 2020-05-15 | L82: 24 | M82: INE093B01015
A83: AMARAJABAT | B83: EQ | C83: 555 | D83: 578 | E83: 550 | F83: 572.85 | G83: 570 | H83: 552.5 | I83: 1834188 | J83: 1037870625 | K83: 2020-05-15 | L83: 33064 | M83: INE885A01032
A84: AMBER | B84: EQ | C84: 1134 | D84: 1168 | E84: 1128.15 | F84: 1139.6 | G84: 1139.95 | H84: 1129.45 | I84: 68030 | J84: 77878382.15 | K84: 2020-05-15 | L84: 11880 | M84: INE371P01015
A85: AMBIKCO | B85: EQ | C85: 643.1 | D85: 658.35 | E85: 643.1 | F85: 652.7 | G85: 657 | H85: 640.05 | I85: 1690 | J85: 1100942 | K85: 2020-05-15 | L85: 259 | M85: INE540G01014
A86: AMBUJACEM | B86: EQ | C86: 184 | D86: 184.7 | E86: 179.85 | F86: 181.8 | G86: 181.75 | H86: 182.5 | I86: 6194865 | J86: 1126025027 | K86: 2020-05-15 | L86: 64664 | M86: INE079A01024
A87: AMDIND | B87: EQ | C87: 12.5 | D87: 12.5 | E87: 11.65 | F87: 12.1 | G87: 12.1 | H87: 12.1 | I87: 1606 | J87: 19362.9 | K87: 2020-05-15 | L87: 22 | M87: INE005I01014
A88: AMJLAND | B88: EQ | C88: 14.4 | D88: 15 | E88: 14.4 | F88: 14.65 | G88: 14.65 | H88: 14.7 | I88: 412 | J88: 6050.95 | K88: 2020-05-15 | L88: 23 | M88: INE606A01024
A89: AMRUTANJAN | B89: EQ | C89: 353.8 | D89: 365 | E89: 346 | F89: 360.2 | G89: 359.4 | H89: 353.8 | I89: 73784 | J89: 26436046.2 | K89: 2020-05-15 | L89: 3898 | M89: INE098F01031
A90: ANANTRAJ | B90: EQ | C90: 15.25 | D90: 15.25 | E90: 14.35 | F90: 14.95 | G90: 14.9 | H90: 14.9 | I90: 60547 | J90: 907088.2 | K90: 2020-05-15 | L90: 285 | M90: INE242C01024
A91: ANDHRACEMT | B91: BE | C91: 3.3 | D91: 3.35 | E91: 3.05 | F91: 3.35 | G91: 3.35 | H91: 3.2 | I91: 592505 | J91: 1962878.85 | K91: 2020-05-15 | L91: 938 | M91: INE666E01012
A92: ANDHRAPAP | B92: EQ | C92: 174.6 | D92: 178.5 | E92: 170.15 | F92: 174 | G92: 174.5 | H92: 171.5 | I92: 2173 | J92: 377035.9 | K92: 2020-05-15 | L92: 129 | M92: INE435A01028
A93: ANDHRSUGAR | B93: EQ | C93: 213.5 | D93: 215 | E93: 208.05 | F93: 210.3 | G93: 210.1 | H93: 213.25 | I93: 30594 | J93: 6432269.95 | K93: 2020-05-15 | L93: 842 | M93: INE715B01013
A94: ANIKINDS | B94: BE | C94: 9.75 | D94: 10.2 | E94: 9.6 | F94: 10.2 | G94: 10.2 | H94: 9.75 | I94: 8873 | J94: 89896.35 | K94: 2020-05-15 | L94: 45 | M94: INE087B01017
A95: ANKITMETAL | B95: EQ | C95: 0.35 | D95: 0.35 | E95: 0.35 | F95: 0.35 | G95: 0.35 | H95: 0.35 | I95: 5531 | J95: 1935.85 | K95: 2020-05-15 | L95: 8 | M95: INE106I01010
A96: ANSALAPI | B96: BE | C96: 5.65 | D96: 5.9 | E96: 5.4 | F96: 5.6 | G96: 5.6 | H96: 5.65 | I96: 42626 | J96: 240545.65 | K96: 2020-05-15 | L96: 39 | M96: INE436A01026
A97: ANSALHSG | B97: EQ | C97: 3.4 | D97: 3.55 | E97: 3.25 | F97: 3.3 | G97: 3.25 | H97: 3.4 | I97: 37541 | J97: 123081.3 | K97: 2020-05-15 | L97: 44 | M97: INE880B01015
A98: ANUP | B98: EQ | C98: 272.7 | D98: 274.95 | E98: 271 | F98: 272.25 | G98: 272.95 | H98: 273.7 | I98: 6308 | J98: 1724540.95 | K98: 2020-05-15 | L98: 173 | M98: INE294Z01018
A99: APARINDS | B99: EQ | C99: 298.55 | D99: 302.7 | E99: 292 | F99: 294.15 | G99: 293.05 | H99: 300 | I99: 8802 | J99: 2609752.75 | K99: 2020-05-15 | L99: 628 | M99: INE372A01015
A100: APCL | B100: EQ | C100: 110 | D100: 112.4 | E100: 106.4 | F100: 110.6 | G100: 110.2 | H100: 110.1 | I100: 6007 | J100: 664239.55 | K100: 2020-05-15 | L100: 166 | M100: INE071F01012
A101: APCOTEXIND | B101: EQ | C101: 99.7 | D101: 99.7 | E101: 96 | F101: 97.95 | G101: 98.6 | H101: 98.5 | I101: 4878 | J101: 475897.25 | K101: 2020-05-15 | L101: 249 | M101: INE116A01032
A102: APEX | B102: EQ | C102: 199 | D102: 199 | E102: 188.65 | F102: 190.75 | G102: 189.7 | H102: 185.95 | I102: 1011425 | J102: 194659938.5 | K102: 2020-05-15 | L102: 19617 | M102: INE346W01013
A103: APLAPOLLO | B103: EQ | C103: 1222 | D103: 1257.1 | E103: 1219.35 | F103: 1247.1 | G103: 1250 | H103: 1220.4 | I103: 21260 | J103: 26336350.85 | K103: 2020-05-15 | L103: 3378 | M103: INE702C01019
A104: APLLTD | B104: EQ | C104: 850 | D104: 887.35 | E104: 850 | F104: 873.15 | G104: 874.95 | H104: 845.95 | I104: 751350 | J104: 654995778.4 | K104: 2020-05-15 | L104: 42116 | M104: INE901L01018
A105: APOLLO | B105: EQ | C105: 77.2 | D105: 89.45 | E105: 72.6 | F105: 87.85 | G105: 86.75 | H105: 75.8 | I105: 1974613 | J105: 168486237.6 | K105: 2020-05-15 | L105: 16684 | M105: INE713T01010
A106: APOLLOHOSP | B106: EQ | C106: 1299 | D106: 1377.1 | E106: 1290.15 | F106: 1355.3 | G106: 1354.55 | H106: 1294.4 | I106: 1984100 | J106: 2667934901 | K106: 2020-05-15 | L106: 97380 | M106: INE437A01024
A107: APOLLOPIPE | B107: EQ | C107: 317 | D107: 320 | E107: 305 | F107: 309.7 | G107: 308.9 | H107: 314.65 | I107: 23966 | J107: 7414568.85 | K107: 2020-05-15 | L107: 1078 | M107: INE126J01016
A108: APOLLOTYRE | B108: EQ | C108: 92.45 | D108: 93.2 | E108: 90.55 | F108: 91.7 | G108: 92 | H108: 92.6 | I108: 7108760 | J108: 652046007.9 | K108: 2020-05-15 | L108: 23867 | M108: INE438A01022
A109: APOLSINHOT | B109: EQ | C109: 423.8 | D109: 423.8 | E109: 407.25 | F109: 415.3 | G109: 409.1 | H109: 419.45 | I109: 80 | J109: 33241.2 | K109: 2020-05-15 | L109: 40 | M109: INE451F01024
A110: APTECHT | B110: EQ | C110: 101 | D110: 105.45 | E110: 100.35 | F110: 102 | G110: 101.9 | H110: 100.6 | I110: 149906 | J110: 15481691.75 | K110: 2020-05-15 | L110: 2170 | M110: INE266F01018
A111: ARCHIDPLY | B111: EQ | C111: 19.4 | D111: 20.2 | E111: 19.35 | F111: 19.4 | G111: 19.45 | H111: 19.45 | I111: 5047 | J111: 98463.8 | K111: 2020-05-15 | L111: 114 | M111: INE877I01016
A112: ARCHIES | B112: BE | C112: 11.15 | D112: 11.4 | E112: 11 | F112: 11.15 | G112: 11.35 | H112: 11.5 | I112: 6825 | J112: 75655.85 | K112: 2020-05-15 | L112: 30 | M112: INE731A01020
A113: ARCOTECH | B113: BE | C113: 2.2 | D113: 2.2 | E113: 2.1 | F113: 2.2 | G113: 2.2 | H113: 2.1 | I113: 9604 | J113: 20929 | K113: 2020-05-15 | L113: 22 | M113: INE574I01035
A114: ARENTERP | B114: EQ | C114: 9.25 | D114: 10.15 | E114: 9.25 | F114: 9.95 | G114: 9.95 | H114: 9.7 | I114: 796 | J114: 7956.15 | K114: 2020-05-15 | L114: 15 | M114: INE610C01014
A115: ARIES | B115: EQ | C115: 58.15 | D115: 58.65 | E115: 55.85 | F115: 56.3 | G115: 56.3 | H115: 57.6 | I115: 40744 | J115: 2304955.75 | K115: 2020-05-15 | L115: 562 | M115: INE298I01015
A116: ARIHANT | B116: EQ | C116: 15.25 | D116: 15.25 | E116: 14.35 | F116: 14.35 | G116: 14.35 | H116: 14.5 | I116: 465 | J116: 6686.45 | K116: 2020-05-15 | L116: 15 | M116: INE413D01011
A117: ARIHANTSUP | B117: EQ | C117: 18.7 | D117: 18.75 | E117: 17.05 | F117: 17.9 | G117: 18.2 | H117: 17.9 | I117: 23099 | J117: 404133.2 | K117: 2020-05-15 | L117: 156 | M117: INE643K01018
A118: ARMANFIN | B118: EQ | C118: 342.25 | D118: 348 | E118: 332 | F118: 339.85 | G118: 346.05 | H118: 342.25 | I118: 5140 | J118: 1746091.75 | K118: 2020-05-15 | L118: 348 | M118: INE109C01017
A119: AROGRANITE | B119: EQ | C119: 22.45 | D119: 22.8 | E119: 21.75 | F119: 22.15 | G119: 21.8 | H119: 22.6 | I119: 8903 | J119: 197321.9 | K119: 2020-05-15 | L119: 126 | M119: INE210C01013
A120: ARROWGREEN | B120: BE | C120: 33.5 | D120: 33.9 | E120: 33 | F120: 33.9 | G120: 33.9 | H120: 33.5 | I120: 1244 | J120: 41697.5 | K120: 2020-05-15 | L120: 10 | M120: INE570D01018
A121: ARSHIYA | B121: BE | C121: 11 | D121: 11.4 | E121: 10.8 | F121: 11.3 | G121: 11.3 | H121: 11.35 | I121: 4588 | J121: 50129.65 | K121: 2020-05-15 | L121: 24 | M121: INE968D01022
A122: ARSSINFRA | B122: BE | C122: 11.8 | D122: 11.95 | E122: 11.4 | F122: 11.9 | G122: 11.95 | H122: 12 | I122: 5295 | J122: 61309.5 | K122: 2020-05-15 | L122: 23 | M122: INE267I01010
A123: ARTEMISMED | B123: EQ | C123: 156.95 | D123: 156.95 | E123: 150.05 | F123: 150.35 | G123: 150.35 | H123: 153.65 | I123: 280 | J123: 42826.2 | K123: 2020-05-15 | L123: 18 | M123: INE025R01013
A124: ARVIND | B124: EQ | C124: 25 | D124: 25.05 | E124: 23.3 | F124: 24.15 | G124: 24.15 | H124: 24.5 | I124: 3571793 | J124: 85576355.45 | K124: 2020-05-15 | L124: 9820 | M124: INE034A01011
A125: ARVINDFASN | B125: EQ | C125: 134 | D125: 135 | E125: 132 | F125: 132.7 | G125: 132.3 | H125: 134.45 | I125: 17623 | J125: 2348571.9 | K125: 2020-05-15 | L125: 670 | M125: INE955V01021
A126: ARVSMART | B126: EQ | C126: 72.9 | D126: 72.9 | E126: 66.7 | F126: 67.45 | G126: 66.9 | H126: 74.95 | I126: 287637 | J126: 19916491.05 | K126: 2020-05-15 | L126: 3198 | M126: INE034S01021
A127: ASAHIINDIA | B127: EQ | C127: 153.85 | D127: 157.55 | E127: 150.3 | F127: 153.35 | G127: 152.6 | H127: 152.45 | I127: 5161 | J127: 797126.8 | K127: 2020-05-15 | L127: 419 | M127: INE439A01020
A128: ASAHISONG | B128: EQ | C128: 98.75 | D128: 105 | E128: 98.7 | F128: 102.05 | G128: 102 | H128: 101.25 | I128: 10713 | J128: 1095999 | K128: 2020-05-15 | L128: 166 | M128: INE228I01012
A129: ASAL | B129: EQ | C129: 14.65 | D129: 14.7 | E129: 14.05 | F129: 14.5 | G129: 14.2 | H129: 14.45 | I129: 1380 | J129: 19873.3 | K129: 2020-05-15 | L129: 51 | M129: INE900C01027
A130: ASALCBR | B130: EQ | C130: 194.2 | D130: 198 | E130: 189 | F130: 190.35 | G130: 190 | H130: 194.2 | I130: 46022 | J130: 8910561.6 | K130: 2020-05-15 | L130: 2003 | M130: INE073G01016
A131: ASCOM | B131: SM | C131: 37 | D131: 37 | E131: 37 | F131: 37 | G131: 37 | H131: 35 | I131: 4000 | J131: 148000 | K131: 2020-05-15 | L131: 1 | M131: INE08KD01015
A132: ASHAPURMIN | B132: EQ | C132: 24.2 | D132: 26 | E132: 24.2 | F132: 25.25 | G132: 25.25 | H132: 25.2 | I132: 10046 | J132: 251625.15 | K132: 2020-05-15 | L132: 70 | M132: INE348A01023
A133: ASHIANA | B133: EQ | C133: 42.45 | D133: 44.45 | E133: 40.75 | F133: 41.3 | G133: 41.05 | H133: 42 | I133: 68194 | J133: 2823777.85 | K133: 2020-05-15 | L133: 420 | M133: INE365D01021
A134: ASHIMASYN | B134: BE | C134: 4.4 | D134: 4.45 | E134: 4.05 | F134: 4.4 | G134: 4.45 | H134: 4.25 | I134: 12011 | J134: 50994.3 | K134: 2020-05-15 | L134: 51 | M134: INE440A01010
A135: ASHOKA | B135: EQ | C135: 58.7 | D135: 59.35 | E135: 56.35 | F135: 56.75 | G135: 56.95 | H135: 58.3 | I135: 312007 | J135: 17847444.05 | K135: 2020-05-15 | L135: 2990 | M135: INE442H01029
A136: ASHOKLEY | B136: EQ | C136: 49.3 | D136: 49.4 | E136: 46.9 | F136: 47.15 | G136: 47.25 | H136: 49.3 | I136: 30013736 | J136: 1423990133 | K136: 2020-05-15 | L136: 86594 | M136: INE208A01029
A137: ASIANHOTNR | B137: EQ | C137: 59.9 | D137: 60.85 | E137: 52.25 | F137: 59 | G137: 59.1 | H137: 56.6 | I137: 90219 | J137: 5336032.5 | K137: 2020-05-15 | L137: 1050 | M137: INE363A01022
A138: ASIANPAINT | B138: EQ | C138: 1529 | D138: 1560 | E138: 1510 | F138: 1552.95 | G138: 1555 | H138: 1522.4 | I138: 2860615 | J138: 4388306083 | K138: 2020-05-15 | L138: 103725 | M138: INE021A01026
A139: ASIANTILES | B139: EQ | C139: 141.9 | D139: 141.95 | E139: 136.3 | F139: 137 | G139: 137.25 | H139: 137.65 | I139: 9534 | J139: 1311519.55 | K139: 2020-05-15 | L139: 683 | M139: INE022I01019
A140: ASPINWALL | B140: EQ | C140: 107 | D140: 107 | E140: 99.2 | F140: 100.05 | G140: 99.25 | H140: 102 | I140: 206 | J140: 20799.45 | K140: 2020-05-15 | L140: 14 | M140: INE991I01015
A141: ASTEC | B141: EQ | C141: 550.5 | D141: 570 | E141: 538.6 | F141: 546.3 | G141: 549.95 | H141: 549.85 | I141: 71402 | J141: 39258831.4 | K141: 2020-05-15 | L141: 2401 | M141: INE563J01010
A142: ASTERDM | B142: EQ | C142: 93.45 | D142: 95.5 | E142: 92.55 | F142: 92.9 | G142: 92.95 | H142: 93.2 | I142: 160707 | J142: 14977751.1 | K142: 2020-05-15 | L142: 3902 | M142: INE914M01019
A143: ASTRAL | B143: EQ | C143: 877.9 | D143: 884.95 | E143: 857 | F143: 864.35 | G143: 862.9 | H143: 885.9 | I143: 130965 | J143: 113637925.1 | K143: 2020-05-15 | L143: 21616 | M143: INE006I01046
A144: ASTRAMICRO | B144: EQ | C144: 61.15 | D144: 63.85 | E144: 60.65 | F144: 63.85 | G144: 63.85 | H144: 60.85 | I144: 163457 | J144: 10305313.1 | K144: 2020-05-15 | L144: 1061 | M144: INE386C01029
A145: ASTRAZEN | B145: EQ | C145: 3000 | D145: 3103 | E145: 3000 | F145: 3020.75 | G145: 3012 | H145: 3009.3 | I145: 29808 | J145: 90809452.7 | K145: 2020-05-15 | L145: 3932 | M145: INE203A01020
A146: ASTRON | B146: EQ | C146: 28.55 | D146: 28.55 | E146: 27.75 | F146: 28.1 | G146: 28 | H146: 28.3 | I146: 16782 | J146: 475386.25 | K146: 2020-05-15 | L146: 137 | M146: INE646X01014
A147: ATFL | B147: EQ | C147: 496.2 | D147: 496.2 | E147: 475 | F147: 491.55 | G147: 494 | H147: 496.15 | I147: 6902 | J147: 3349802.7 | K147: 2020-05-15 | L147: 584 | M147: INE209A01019
A148: ATLANTA | B148: EQ | C148: 6.3 | D148: 6.3 | E148: 6.3 | F148: 6.3 | G148: 6.3 | H148: 6.6 | I148: 9253 | J148: 58293.9 | K148: 2020-05-15 | L148: 52 | M148: INE285H01022
A149: ATLASCYCLE | B149: BE | C149: 36.5 | D149: 38 | E149: 36.5 | F149: 37.65 | G149: 38 | H149: 37.7 | I149: 2620 | J149: 98353.95 | K149: 2020-05-15 | L149: 36 | M149: INE446A01025
A150: ATUL | B150: EQ | C150: 4617.2 | D150: 4617.2 | E150: 4501.1 | F150: 4549.85 | G150: 4540 | H150: 4615.35 | I150: 7381 | J150: 33688256.55 | K150: 2020-05-15 | L150: 1729 | M150: INE100A01010
A151: ATULAUTO | B151: EQ | C151: 162 | D151: 166 | E151: 160 | F151: 160.95 | G151: 160.5 | H151: 162.6 | I151: 10072 | J151: 1632189.5 | K151: 2020-05-15 | L151: 340 | M151: INE951D01028
A152: AUBANK | B152: EQ | C152: 428 | D152: 440.05 | E152: 415.75 | F152: 417.5 | G152: 417 | H152: 419.1 | I152: 1466643 | J152: 632505092.4 | K152: 2020-05-15 | L152: 36955 | M152: INE949L01017
A153: AURIONPRO | B153: EQ | C153: 46 | D153: 47.8 | E153: 43 | F153: 46.6 | G153: 47 | H153: 44.4 | I153: 22312 | J153: 1026889.9 | K153: 2020-05-15 | L153: 285 | M153: INE132H01018
A154: AUROPHARMA | B154: EQ | C154: 664.8 | D154: 675.3 | E154: 657.3 | F154: 664.95 | G154: 664.55 | H154: 665.6 | I154: 4186937 | J154: 2787129666 | K154: 2020-05-15 | L154: 67872 | M154: INE406A01037
A155: AUSOMENT | B155: EQ | C155: 24.5 | D155: 25.7 | E155: 24.5 | F155: 24.55 | G155: 24.8 | H155: 24.5 | I155: 565 | J155: 13868.5 | K155: 2020-05-15 | L155: 10 | M155: INE218C01016
A156: AUTOAXLES | B156: EQ | C156: 470 | D156: 470 | E156: 456.1 | F156: 464.5 | G156: 464.85 | H156: 465.95 | I156: 1962 | J156: 910137.45 | K156: 2020-05-15 | L156: 199 | M156: INE449A01011
A157: AUTOIND | B157: BE | C157: 16.3 | D157: 16.3 | E157: 15 | F157: 15.8 | G157: 15.9 | H157: 15.75 | I157: 10201 | J157: 159838.5 | K157: 2020-05-15 | L157: 69 | M157: INE718H01014
A158: AUTOLITIND | B158: EQ | C158: 16.5 | D158: 17.3 | E158: 16 | F158: 16.9 | G158: 17.05 | H158: 16.65 | I158: 5482 | J158: 91456.1 | K158: 2020-05-15 | L158: 64 | M158: INE448A01013
A159: AVADHSUGAR | B159: EQ | C159: 130.65 | D159: 132.5 | E159: 127.5 | F159: 131.8 | G159: 132.5 | H159: 129.3 | I159: 13665 | J159: 1784078.9 | K159: 2020-05-15 | L159: 363 | M159: INE349W01017
A160: AVANTIFEED | B160: EQ | C160: 425 | D160: 437.8 | E160: 417.9 | F160: 422.15 | G160: 420.5 | H160: 407.25 | I160: 2621725 | J160: 1112798482 | K160: 2020-05-15 | L160: 47817 | M160: INE871C01038
A161: AVTNPL | B161: EQ | C161: 37.2 | D161: 38 | E161: 36.6 | F161: 37.15 | G161: 37.4 | H161: 36.75 | I161: 128946 | J161: 4787881.85 | K161: 2020-05-15 | L161: 894 | M161: INE488D01021
A162: AXISBANK | B162: EQ | C162: 402.75 | D162: 403.9 | E162: 386.8 | F162: 388.55 | G162: 388.8 | H162: 401.95 | I162: 25435045 | J162: 9957298069 | K162: 2020-05-15 | L162: 274054 | M162: INE238A01034
A163: AXISCADES | B163: EQ | C163: 32 | D163: 32 | E163: 30.3 | F163: 31.3 | G163: 31 | H163: 31.2 | I163: 11960 | J163: 368687.65 | K163: 2020-05-15 | L163: 195 | M163: INE555B01013
A164: AXISGOLD | B164: EQ | C164: 4136 | D164: 4180 | E164: 4136 | F164: 4154.8 | G164: 4154 | H164: 4136.25 | I164: 2005 | J164: 8334613.2 | K164: 2020-05-15 | L164: 296 | M164: INF846K01347
A165: AXISNIFTY | B165: EQ | C165: 1130 | D165: 1131 | E165: 1103 | F165: 1131 | G165: 1131 | H165: 1132 | I165: 7 | J165: 7888 | K165: 2020-05-15 | L165: 4 | M165: INF846K01ZL0
A166: AYMSYNTEX | B166: EQ | C166: 14.55 | D166: 15.6 | E166: 14.5 | F166: 14.9 | G166: 14.9 | H166: 14.8 | I166: 3290 | J166: 49075.2 | K166: 2020-05-15 | L166: 23 | M166: INE193B01039
A167: BAGFILMS | B167: BE | C167: 1.65 | D167: 1.7 | E167: 1.6 | F167: 1.7 | G167: 1.7 | H167: 1.65 | I167: 51989 | J167: 87841 | K167: 2020-05-15 | L167: 56 | M167: INE116D01028
A168: BAJAJ-AUTO | B168: EQ | C168: 2705 | D168: 2710 | E168: 2650 | F168: 2663.6 | G168: 2660 | H168: 2702.65 | I168: 645549 | J168: 1724250014 | K168: 2020-05-15 | L168: 41247 | M168: INE917I01010
A169: BAJAJCON | B169: EQ | C169: 133.65 | D169: 135 | E169: 132 | F169: 132.9 | G169: 133 | H169: 132.5 | I169: 130425 | J169: 17336369.65 | K169: 2020-05-15 | L169: 4091 | M169: INE933K01021
A170: BAJAJELEC | B170: EQ | C170: 376.9 | D170: 380.7 | E170: 371.25 | F170: 374.65 | G170: 371.3 | H170: 373.15 | I170: 326720 | J170: 122964235.5 | K170: 2020-05-15 | L170: 5092 | M170: INE193E01025
A171: BAJAJFINSV | B171: EQ | C171: 4792 | D171: 4833.65 | E171: 4701 | F171: 4723.25 | G171: 4710 | H171: 4790.25 | I171: 395124 | J171: 1874937739 | K171: 2020-05-15 | L171: 36714 | M171: INE918I01018
A172: BAJAJHIND | B172: EQ | C172: 4.2 | D172: 4.2 | E172: 4.1 | F172: 4.15 | G172: 4.2 | H172: 4.2 | I172: 1712593 | J172: 7081250.4 | K172: 2020-05-15 | L172: 2202 | M172: INE306A01021
A173: BAJAJHLDNG | B173: EQ | C173: 1912 | D173: 1932 | E173: 1886.75 | F173: 1925.25 | G173: 1924.4 | H173: 1902.6 | I173: 13893 | J173: 26564866.4 | K173: 2020-05-15 | L173: 2871 | M173: INE118A01012
A174: BAJFINANCE | B174: EQ | C174: 2119.95 | D174: 2136.6 | E174: 2056 | F174: 2086.45 | G174: 2086 | H174: 2112 | I174: 8026847 | J174: 1.671450932e+10 | K174: 2020-05-15 | L174: 290503 | M174: INE296A01024
A175: BALAJITELE | B175: EQ | C175: 64.05 | D175: 66.1 | E175: 64 | F175: 65.2 | G175: 65 | H175: 63.9 | I175: 79060 | J175: 5139494.4 | K175: 2020-05-15 | L175: 944 | M175: INE794B01026
A176: BALAMINES | B176: EQ | C176: 392 | D176: 408.95 | E176: 384.05 | F176: 397.45 | G176: 396.15 | H176: 390.05 | I176: 172098 | J176: 68969724.9 | K176: 2020-05-15 | L176: 4807 | M176: INE050E01027
A177: BALAXI | B177: BE | C177: 72.75 | D177: 77 | E177: 72.75 | F177: 77 | G177: 77 | H177: 76.05 | I177: 472 | J177: 35544 | K177: 2020-05-15 | L177: 12 | M177: INE618N01014
A178: BALKRISHNA | B178: EQ | C178: 12.4 | D178: 12.4 | E178: 11.5 | F178: 12.1 | G178: 12.1 | H178: 12.05 | I178: 2611 | J178: 32167.35 | K178: 2020-05-15 | L178: 18 | M178: INE875R01011
A179: BALKRISIND | B179: EQ | C179: 969 | D179: 981 | E179: 941 | F179: 944.3 | G179: 943.65 | H179: 965.3 | I179: 768338 | J179: 735017398.6 | K179: 2020-05-15 | L179: 23504 | M179: INE787D01026
A180: BALLARPUR | B180: EQ | C180: 0.45 | D180: 0.5 | E180: 0.4 | F180: 0.45 | G180: 0.5 | H180: 0.45 | I180: 3015138 | J180: 1371258.55 | K180: 2020-05-15 | L180: 682 | M180: INE294A01037
A181: BALMLAWRIE | B181: EQ | C181: 99.65 | D181: 102.5 | E181: 97 | F181: 100.6 | G181: 100.7 | H181: 98.9 | I181: 207584 | J181: 20788281.75 | K181: 2020-05-15 | L181: 2823 | M181: INE164A01016
A182: BALPHARMA | B182: BE | C182: 35.85 | D182: 36.9 | E182: 35.1 | F182: 36.8 | G182: 36.05 | H182: 35.75 | I182: 8019 | J182: 288083.15 | K182: 2020-05-15 | L182: 46 | M182: INE083D01012
A183: BALRAMCHIN | B183: EQ | C183: 92 | D183: 92.7 | E183: 90.5 | F183: 90.9 | G183: 90.8 | H183: 91.15 | I183: 402835 | J183: 36780652.45 | K183: 2020-05-15 | L183: 5454 | M183: INE119A01028
A184: BANARBEADS | B184: EQ | C184: 33.35 | D184: 34.5 | E184: 32 | F184: 32 | G184: 32 | H184: 32.05 | I184: 289 | J184: 9572.85 | K184: 2020-05-15 | L184: 13 | M184: INE655B01011
A185: BANARISUG | B185: EQ | C185: 869.85 | D185: 869.9 | E185: 844.4 | F185: 861.45 | G185: 847 | H185: 855 | I185: 115 | J185: 99415.05 | K185: 2020-05-15 | L185: 23 | M185: INE459A01010
A186: BANCOINDIA | B186: EQ | C186: 65.05 | D186: 65.5 | E186: 64.7 | F186: 65 | G186: 65 | H186: 65.1 | I186: 26834 | J186: 1743688.75 | K186: 2020-05-15 | L186: 475 | M186: INE213C01025
A187: BANDHANBNK | B187: EQ | C187: 254 | D187: 255.3 | E187: 242.15 | F187: 243.7 | G187: 243.2 | H187: 251.8 | I187: 10302272 | J187: 2551005080 | K187: 2020-05-15 | L187: 107994 | M187: INE545U01014
A188: BANG | B188: EQ | C188: 14.5 | D188: 15.65 | E188: 14.25 | F188: 15.6 | G188: 15.5 | H188: 14.95 | I188: 5280 | J188: 78248.95 | K188: 2020-05-15 | L188: 33 | M188: INE863I01016
A189: BANKBARODA | B189: EQ | C189: 43.15 | D189: 43.6 | E189: 41.4 | F189: 41.6 | G189: 41.55 | H189: 43.15 | I189: 24229616 | J189: 1023516189 | K189: 2020-05-15 | L189: 68620 | M189: INE028A01039
A190: BANKBEES | B190: EQ | C190: 193.95 | D190: 193.95 | E190: 188.5 | F190: 190.05 | G190: 189.8 | H190: 192.42 | I190: 523067 | J190: 99322482.77 | K190: 2020-05-15 | L190: 6337 | M190: INF204KB15I9
A191: BANKINDIA | B191: EQ | C191: 33.7 | D191: 33.95 | E191: 33.3 | F191: 33.45 | G191: 33.35 | H191: 33.85 | I191: 2139277 | J191: 71871446.6 | K191: 2020-05-15 | L191: 4419 | M191: INE084A01016
A192: BANSWRAS | B192: EQ | C192: 73.3 | D192: 73.3 | E192: 70.5 | F192: 70.55 | G192: 70.5 | H192: 71.85 | I192: 1500 | J192: 106306.55 | K192: 2020-05-15 | L192: 38 | M192: INE629D01012
A193: BARTRONICS | B193: BZ | C193: 1.45 | D193: 1.5 | E193: 1.45 | F193: 1.5 | G193: 1.5 | H193: 1.45 | I193: 284 | J193: 413.5 | K193: 2020-05-15 | L193: 5 | M193: INE855F01034
A194: BASF | B194: EQ | C194: 1005 | D194: 1014 | E194: 995 | F194: 1000.25 | G194: 1000 | H194: 1008.4 | I194: 4023 | J194: 4025490.5 | K194: 2020-05-15 | L194: 311 | M194: INE373A01013
A195: BASML | B195: EQ | C195: 74 | D195: 78 | E195: 74 | F195: 77.35 | G195: 77.9 | H195: 75.1 | I195: 331 | J195: 25271.05 | K195: 2020-05-15 | L195: 29 | M195: INE186H01014
A196: BATAINDIA | B196: EQ | C196: 1372 | D196: 1372 | E196: 1323 | F196: 1335 | G196: 1338.3 | H196: 1364 | I196: 882864 | J196: 1183740686 | K196: 2020-05-15 | L196: 40086 | M196: INE176A01028
A197: BAYERCROP | B197: EQ | C197: 4558.95 | D197: 4558.95 | E197: 4486.15 | F197: 4528.55 | G197: 4532 | H197: 4500.25 | I197: 4651 | J197: 21050860.2 | K197: 2020-05-15 | L197: 2357 | M197: INE462A01022
A198: BBL | B198: EQ | C198: 671 | D198: 671 | E198: 651.2 | F198: 658.75 | G198: 662 | H198: 670.3 | I198: 4023 | J198: 2651996.4 | K198: 2020-05-15 | L198: 298 | M198: INE464A01028
A199: BBTC | B199: EQ | C199: 852 | D199: 867.95 | E199: 845 | F199: 850.25 | G199: 846 | H199: 851 | I199: 28330 | J199: 24250559.45 | K199: 2020-05-15 | L199: 1946 | M199: INE050A01025
A200: BCG | B200: EQ | C200: 5 | D200: 5 | E200: 5 | F200: 5 | G200: 5 | H200: 4.8 | I200: 489987 | J200: 2449935 | K200: 2020-05-15 | L200: 129 | M200: INE425B01027
... 1758 more rows

Sheet Chart data (hidden)
A1: Start Month | C1: Year | D1: Month | E1: TOTAL | F1: =SUM(E:E) -> 9880 | H1: TOTAL | I1: 9880
A2: 4346600.00% | B2: =TEXT(A2,"mmmm") -> January | C2: =TEXT(A2,"yyyy") -> 2019 | D2: =CONCATENATE(B2,"-",C2) -> January-2019 | E2: =SUMIF('Stocks Data'!$A$4:$A$1000,'Chart data'!D2,'Stocks Data'!$F$4:$F$1000) -> 0
A3: =EDATE(A2,1) -> 4349700.00% | B3: =TEXT(A3,"mmmm") -> February | C3: =TEXT(A3,"yyyy") -> 2019 | D3: =CONCATENATE(B3,"-",C3) -> February-2019 | E3: =SUMIF('Stocks Data'!$A$4:$A$1000,'Chart data'!D3,'Stocks Data'!$F$4:$F$1000) -> 0 | H3: Row Labels | I3: Sum of TOTAL
A4: =EDATE(A3,1) -> 4352500.00% | B4: March | C4: 2019 | D4: March-2019 | E4: =SUMIF('Stocks Data'!$A$4:$A$1000,'Chart data'!D4,'Stocks Data'!$F$4:$F$1000) -> 0 | H4: 2020
A5: 4355600.00% | B5: April | C5: 2019 | D5: April-2019 | E5: =SUMIF('Stocks Data'!$A$4:$A$1000,'Chart data'!D5,'Stocks Data'!$F$4:$F$1000) -> 0 | H5: May-2020 | I5: 9880
A6: 4358600.00% | B6: =TEXT(A6,"mmmm") -> May | C6: 2019 | D6: May-2019 | E6: =SUMIF('Stocks Data'!$A$4:$A$1000,'Chart data'!D6,'Stocks Data'!$F$4:$F$1000) -> 0 | H6: Grand Total | I6: 9880
A7: 4361700.00% | B7: June | C7: 2019 | D7: June-2019 | E7: =SUMIF('Stocks Data'!$A$4:$A$1000,'Chart data'!D7,'Stocks Data'!$F$4:$F$1000) -> 0
A8: 4364700.00% | B8: July | C8: 2019 | D8: July-2019 | E8: =SUMIF('Stocks Data'!$A$4:$A$1000,'Chart data'!D8,'Stocks Data'!$F$4:$F$1000) -> 0
A9: 4367800.00% | B9: August | C9: 2019 | D9: August-2019 | E9: =SUMIF('Stocks Data'!$A$4:$A$1000,'Chart data'!D9,'Stocks Data'!$F$4:$F$1000) -> 0
A10: 4370900.00% | B10: September | C10: 2019 | D10: September-2019 | E10: =SUMIF('Stocks Data'!$A$4:$A$1000,'Chart data'!D10,'Stocks Data'!$F$4:$F$1000) -> 0
A11: 4373900.00% | B11: October | C11: 2019 | D11: October-2019 | E11: =SUMIF('Stocks Data'!$A$4:$A$1000,'Chart data'!D11,'Stocks Data'!$F$4:$F$1000) -> 0
A12: 4377000.00% | B12: November | C12: 2019 | D12: November-2019 | E12: =SUMIF('Stocks Data'!$A$4:$A$1000,'Chart data'!D12,'Stocks Data'!$F$4:$F$1000) -> 0
A13: 4380000.00% | B13: December | C13: 2019 | D13: December-2019 | E13: =SUMIF('Stocks Data'!$A$4:$A$1000,'Chart data'!D13,'Stocks Data'!$F$4:$F$1000) -> 0
A14: =EDATE(A13,1) -> 4383100.00% | B14: =TEXT(A14,"mmmm") -> January | C14: 2020 | D14: =CONCATENATE(B14,"-",C14) -> January-2020 | E14: =SUMIF('Stocks Data'!$A$4:$A$1000,'Chart data'!D14,'Stocks Data'!$F$4:$F$1000) -> 0
A15: 4386200.00% | B15: February | C15: 2020 | D15: February-2020 | E15: =SUMIF('Stocks Data'!$A$4:$A$1000,'Chart data'!D15,'Stocks Data'!$F$4:$F$1000) -> 0
A16: 4389100.00% | B16: March | C16: 2020 | D16: March-2020 | E16: =SUMIF('Stocks Data'!$A$4:$A$1000,'Chart data'!D16,'Stocks Data'!$F$4:$F$1000) -> 0
A17: 4392200.00% | B17: April | C17: 2020 | D17: April-2020 | E17: =SUMIF('Stocks Data'!$A$4:$A$1000,'Chart data'!D17,'Stocks Data'!$F$4:$F$1000) -> 0
A18: 4395200.00% | B18: May | C18: 2020 | D18: May-2020 | E18: =SUMIF('Stocks Data'!$A$4:$A$1000,'Chart data'!D18,'Stocks Data'!$F$4:$F$1000) -> 9880
A19: 4398300.00% | B19: June | C19: 2020 | D19: June-2020 | E19: =SUMIF('Stocks Data'!$A$4:$A$1000,'Chart data'!D19,'Stocks Data'!$F$4:$F$1000) -> 0
A20: 4401300.00% | B20: July | C20: 2020 | D20: July-2020 | E20: =SUMIF('Stocks Data'!$A$4:$A$1000,'Chart data'!D20,'Stocks Data'!$F$4:$F$1000) -> 0
A21: 4404400.00% | B21: August | C21: 2020 | D21: August-2020 | E21: =SUMIF('Stocks Data'!$A$4:$A$1000,'Chart data'!D21,'Stocks Data'!$F$4:$F$1000) -> 0
A22: 4407500.00% | B22: September | C22: 2020 | D22: September-2020 | E22: =SUMIF('Stocks Data'!$A$4:$A$1000,'Chart data'!D22,'Stocks Data'!$F$4:$F$1000) -> 0
A23: 4410500.00% | B23: October | C23: 2020 | D23: October-2020 | E23: =SUMIF('Stocks Data'!$A$4:$A$1000,'Chart data'!D23,'Stocks Data'!$F$4:$F$1000) -> 0
A24: 4413600.00% | B24: November | C24: 2020 | D24: November-2020 | E24: =SUMIF('Stocks Data'!$A$4:$A$1000,'Chart data'!D24,'Stocks Data'!$F$4:$F$1000) -> 0
A25: =EDATE(A24,1) -> 4416600.00% | B25: =TEXT(A25,"mmmm") -> December | C25: =TEXT(A25,"yyyy") -> 2020 | D25: =CONCATENATE(B25,"-",C25) -> December-2020 | E25: =SUMIF('Stocks Data'!$A$4:$A$1000,'Chart data'!D25,'Stocks Data'!$F$4:$F$1000) -> 0
A26: =EDATE(A25,1) -> 4419700.00% | B26: =TEXT(A26,"mmmm") -> January | C26: =TEXT(A26,"yyyy") -> 2021 | D26: =CONCATENATE(B26,"-",C26) -> January-2021 | E26: =SUMIF('Stocks Data'!$A$4:$A$1000,'Chart data'!D26,'Stocks Data'!$F$4:$F$1000) -> 0
A27: 4422800.00% | B27: February | C27: 2021 | D27: February-2021 | E27: =SUMIF('Stocks Data'!$A$4:$A$1000,'Chart data'!D27,'Stocks Data'!$F$4:$F$1000) -> 0
A28: 4425600.00% | B28: March | C28: 2021 | D28: March-2021 | E28: =SUMIF('Stocks Data'!$A$4:$A$1000,'Chart data'!D28,'Stocks Data'!$F$4:$F$1000) -> 0
A29: 4428700.00% | B29: April | C29: 2021 | D29: April-2021 | E29: =SUMIF('Stocks Data'!$A$4:$A$1000,'Chart data'!D29,'Stocks Data'!$F$4:$F$1000) -> 0
A30: 4431700.00% | B30: May | C30: 2021 | D30: May-2021 | E30: =SUMIF('Stocks Data'!$A$4:$A$1000,'Chart data'!D30,'Stocks Data'!$F$4:$F$1000) -> 0
A31: 4434800.00% | B31: June | C31: 2021 | D31: June-2021 | E31: =SUMIF('Stocks Data'!$A$4:$A$1000,'Chart data'!D31,'Stocks Data'!$F$4:$F$1000) -> 0
A32: 4437800.00% | B32: July | C32: 2021 | D32: July-2021 | E32: =SUMIF('Stocks Data'!$A$4:$A$1000,'Chart data'!D32,'Stocks Data'!$F$4:$F$1000) -> 0
A33: 4440900.00% | B33: August | C33: 2021 | D33: August-2021 | E33: =SUMIF('Stocks Data'!$A$4:$A$1000,'Chart data'!D33,'Stocks Data'!$F$4:$F$1000) -> 0
A34: 4444000.00% | B34: September | C34: 2021 | D34: September-2021 | E34: =SUMIF('Stocks Data'!$A$4:$A$1000,'Chart data'!D34,'Stocks Data'!$F$4:$F$1000) -> 0
A35: 4447000.00% | B35: October | C35: 2021 | D35: October-2021 | E35: =SUMIF('Stocks Data'!$A$4:$A$1000,'Chart data'!D35,'Stocks Data'!$F$4:$F$1000) -> 0
A36: 4450100.00% | B36: November | C36: 2021 | D36: November-2021 | E36: =SUMIF('Stocks Data'!$A$4:$A$1000,'Chart data'!D36,'Stocks Data'!$F$4:$F$1000) -> 0
A37: 4453100.00% | B37: December | C37: 2021 | D37: December-2021 | E37: =SUMIF('Stocks Data'!$A$4:$A$1000,'Chart data'!D37,'Stocks Data'!$F$4:$F$1000) -> 0
A38: =EDATE(A37,1) -> 4456200.00% | B38: =TEXT(A38,"mmmm") -> January | C38: =TEXT(A38,"yyyy") -> 2022 | D38: =CONCATENATE(B38,"-",C38) -> January-2022 | E38: =SUMIF('Stocks Data'!$A$4:$A$1000,'Chart data'!D38,'Stocks Data'!$F$4:$F$1000) -> 0
A39: 4459300.00% | B39: February | C39: 2022 | D39: February-2022 | E39: =SUMIF('Stocks Data'!$A$4:$A$1000,'Chart data'!D39,'Stocks Data'!$F$4:$F$1000) -> 0
A40: 4462100.00% | B40: March | C40: 2022 | D40: March-2022 | E40: =SUMIF('Stocks Data'!$A$4:$A$1000,'Chart data'!D40,'Stocks Data'!$F$4:$F$1000) -> 0
A41: 4465200.00% | B41: April | C41: 2022 | D41: April-2022 | E41: =SUMIF('Stocks Data'!$A$4:$A$1000,'Chart data'!D41,'Stocks Data'!$F$4:$F$1000) -> 0
A42: 4468200.00% | B42: May | C42: 2022 | D42: May-2022 | E42: =SUMIF('Stocks Data'!$A$4:$A$1000,'Chart data'!D42,'Stocks Data'!$F$4:$F$1000) -> 0
A43: 4471300.00% | B43: June | C43: 2022 | D43: June-2022 | E43: =SUMIF('Stocks Data'!$A$4:$A$1000,'Chart data'!D43,'Stocks Data'!$F$4:$F$1000) -> 0
A44: 4474300.00% | B44: July | C44: 2022 | D44: July-2022 | E44: =SUMIF('Stocks Data'!$A$4:$A$1000,'Chart data'!D44,'Stocks Data'!$F$4:$F$1000) -> 0
A45: 4477400.00% | B45: August | C45: 2022 | D45: August-2022 | E45: =SUMIF('Stocks Data'!$A$4:$A$1000,'Chart data'!D45,'Stocks Data'!$F$4:$F$1000) -> 0
A46: 4480500.00% | B46: September | C46: 2022 | D46: September-2022 | E46: =SUMIF('Stocks Data'!$A$4:$A$1000,'Chart data'!D46,'Stocks Data'!$F$4:$F$1000) -> 0
A47: 4483500.00% | B47: October | C47: 2022 | D47: October-2022 | E47: =SUMIF('Stocks Data'!$A$4:$A$1000,'Chart data'!D47,'Stocks Data'!$F$4:$F$1000) -> 0
A48: 4486600.00% | B48: November | C48: 2022 | D48: November-2022 | E48: =SUMIF('Stocks Data'!$A$4:$A$1000,'Chart data'!D48,'Stocks Data'!$F$4:$F$1000) -> 0
A49: 4489600.00% | B49: December | C49: 2022 | D49: December-2022 | E49: =SUMIF('Stocks Data'!$A$4:$A$1000,'Chart data'!D49,'Stocks Data'!$F$4:$F$1000) -> 0
A50: =EDATE(A49,1) -> 4492700.00% | B50: =TEXT(A50,"mmmm") -> January | C50: =TEXT(A50,"yyyy") -> 2023 | D50: =CONCATENATE(B50,"-",C50) -> January-2023 | E50: =SUMIF('Stocks Data'!$A$4:$A$1000,'Chart data'!D50,'Stocks Data'!$F$4:$F$1000) -> 0
